bitfinex/quotes_ETHUSD_20260131
["timestamp","ask_amount","ask_price","bid_price","bid_amount"]
[1769900594275,13.89472275,2421.0,2420.1,0.0011]
[1769900594595,13.87814691,2420.8,2420.1,0.0011]
[1769900595698,1.03275911,2420.7,2420.1,0.0011]
[1769900598416,13.89472275,2419.9,2418.9,0.0011]
[1769900598700,0.01657584,2420.3,2418.9,0.0011]
[1769900598701,0.51637956,2420.6,2419.8,12.97832488]
[1769900598882,18.00918338,2420.8,2419.9,2.01154145]
[1769900599078,0.866,2420.5,2419.9,14.01141206]
[1769900599302,0.866,2420.5,2419.9,12.97832488]
[1769900599479,0.866,2420.5,2418.1,2.06660769]
[1769900599480,13.87814691,2420.0,2418.9,0.0011]
[1769900599685,0.01657584,2419.7,2418.9,12.97942488]
[1769900599909,1.38947228,2419.9,2418.9,15.31089315]
[1769900600104,0.866,2419.6,2418.9,15.31089315]
[1769900600703,15.77738022,2419.6,2418.9,0.0011]
[1769900601208,15.77738022,2419.6,2418.6,17.11402729]
[1769900601209,13.89472275,2419.1,2418.6,0.0011]
[1769900601381,0.866,2419.4,2418.9,1.03349004]
[1769900601583,0.866,2419.4,2418.9,14.01181492]
[1769900601985,4.14864601,2420.1,2418.9,14.01181492]
[1769900601986,1.03294903,2420.3,2418.9,15.82642001]
[1769900602198,1.24867245,2420.6,2419.1,12.97832488]
[1769900602396,1.04950564,2420.3,2419.3,14.01164822]
[1769900602814,0.01657584,2420.9,2419.3,14.01164822]
[1769900603111,1.89873175,2420.8,2419.3,14.01164822]
[1769900603301,0.60295976,2420.7,2419.5,12.97832488]
[1769900603907,0.01657584,2420.3,2419.4,1.94429164]
[1769900605605,0.01657584,2420.3,2419.5,1.03327133]
[1769900605606,1.03297248,2420.2,2419.5,1.03327133]
[1769900605791,1.63573928,2420.7,2419.5,14.72267799]
[1769900606106,0.866,2420.6,2419.5,14.72267799]
[1769900606412,18.24092622,2421.1,2419.5,14.72267799]
[1769900606413,15.83127169,2421.4,2419.5,14.72267799]
[1769900606611,0.001,2421.4,2419.9,12.97832488]
[1769900606912,0.867,2421.4,2420.1,12.97832488]
[1769900607212,4.14550537,2422.0,2419.9,0.2335703]
[1769900607213,1.0488129,2422.0,2420.4,12.97832488]
[1769900607404,1.89824842,2421.9,2420.7,1.03275911]
[1769900607587,1.89824842,2421.9,2420.6,17.10936135]
[1769900607588,0.01657584,2421.6,2420.5,14.27615737]
[1769900607787,0.01657584,2421.6,2420.5,1.0328223]
[1769900607788,0.01657584,2421.3,2420.5,1.0328223]
[1769900607991,0.01657584,2421.2,2420.5,1.0328223]
[1769900608213,0.01657584,2421.2,2420.4,1.03286489]
[1769900608387,0.01657584,2420.9,2420.3,1.03292259]
[1769900609292,0.01657584,2420.9,2420.4,1.03288579]
[1769900610080,0.01657584,2421.0,2420.0,14.01138273]
[1769900610278,0.01657584,2421.0,2420.1,14.79270244]
[1769900611216,4.14628709,2421.5,2420.1,14.79270244]
[1769900611217,1.04897986,2421.6,2420.1,14.79270244]
[1769900611409,0.01657584,2421.5,2420.1,14.79270244]
[1769900611997,1.04902308,2421.5,2420.3,12.97832488]
[1769900612190,0.01657584,2421.4,2420.3,12.97832488]
[1769900612394,1.04902308,2421.5,2420.5,12.97832488]
[1769900612597,0.01657584,2421.5,2420.5,12.97832488]
[1769900612796,1.91500127,2421.5,2420.5,12.97832488]
[1769900613001,0.01657584,2421.4,2420.5,12.97832488]
[1769900613211,0.01657584,2420.9,2420.4,1.40112974]
[1769900613401,0.01657584,2420.9,2420.2,1.03297248]
[1769900613594,0.01657584,2420.8,2420.2,1.03297248]
[1769900620105,0.01657584,2420.8,2420.4,0.0011]
[1769900620719,0.01657584,2421.4,2420.4,13.36152454]
[1769900620919,0.88257584,2421.5,2420.4,13.36152454]
[1769900621091,0.866,2421.5,2420.6,13.36042454]
[1769900621302,1.23099831,2422.2,2420.5,1.33615245]
[1769900621303,0.01657584,2422.4,2420.8,13.36042454]
[1769900621500,0.21583951,2422.6,2421.0,13.36042454]
[1769900621737,1.91450651,2422.7,2421.2,13.36042454]
[1769900621907,0.88257584,2422.7,2421.2,13.36042454]
[1769900622440,0.01657584,2422.7,2421.2,13.36042454]
[1769900622603,0.001,2422.9,2421.6,12.85740302]
[1769900622923,0.01657584,2422.8,2421.6,12.85740302]
[1769900623120,0.001,2422.9,2421.6,12.85740302]
[1769900623808,0.01657584,2422.7,2421.6,12.85740302]
[1769900624009,0.001,2422.9,2421.6,12.85740302]
[1769900624210,0.001,2422.9,2421.8,12.85740302]
[1769900625135,0.001,2422.9,2422.0,12.85740302]
[1769900625715,1.04813146,2423.6,2422.0,13.09097332]
[1769900626016,0.60567336,2423.5,2422.2,12.85740302]
[1769900626429,0.01657584,2423.3,2422.2,12.85740302]
[1769900627633,0.01657584,2423.3,2422.4,12.85740302]
[1769900627634,1.03165105,2423.3,2422.4,12.85740302]
[1769900627841,1.61134122,2423.3,2422.5,1.388948]
[1769900628335,1.62791706,2423.3,2422.5,1.388948]
[1769900629642,1.61134122,2423.3,2422.6,1.03194914]
[1769900629849,1.03165105,2423.3,2422.6,1.03194914]
[1769900630209,0.01657584,2423.4,2422.6,1.03194914]
[1769900630410,0.01657584,2423.4,2422.6,13.88935216]
[1769900630639,1.0314625,2423.8,2422.7,14.7980262]
[1769900631567,0.01657584,2423.3,2422.4,12.85740302]
[1769900631708,1.04831204,2423.1,2422.1,13.88954157]
[1769900631912,1.04831204,2423.1,2422.2,1.80181903]
[1769900632123,1.04831204,2423.1,2421.6,4.12937952]
[1769900632333,0.01657584,2422.7,2421.9,1.0322414]
[1769900633135,0.866,2423.0,2422.1,13.8895551]
[1769900635443,1.89778021,2423.0,2422.1,13.8895551]
[1769900636332,1.91435605,2423.0,2422.1,13.8895551]
[1769900636540,0.60413076,2422.9,2422.1,13.8895551]
[1769900638328,0.60413076,2422.9,2422.1,1.03215208]
[1769900638329,1.6525396,2422.9,2422.1,1.03215208]
[1769900638520,0.01657584,2422.8,2422.1,13.88955921]
[1769900638841,0.01657584,2423.2,2422.1,13.88955921]
[1769900638842,1.03160848,2423.4,2422.1,13.88955921]
[1769900639042,0.51745014,2423.3,2422.3,12.85740302]
[1769900639823,0.001,2423.6,2422.3,12.85740302]
[1769900640027,0.01657584,2423.4,2422.3,12.85740302]
[1769900640247,13.85686405,2423.6,2422.3,12.85740302]
[1769900640248,0.001,2423.6,2422.3,12.85740302]
[1769900640447,0.001,2423.6,2422.5,12.85740302]
[1769900641126,1.03252414,2423.6,2422.7,12.85740302]
[1769900641327,1.03252414,2423.6,2422.5,1.03198938]
[1769900641328,0.01657584,2423.3,2422.5,1.03198938]
[1769900641527,0.01657584,2423.4,2422.5,1.03198938]
[1769900641833,0.01657584,2423.3,2422.3,1.03206785]
[1769900642040,0.01657584,2423.3,2422.2,4.12840494]
[1769900642251,0.01657584,2423.3,2422.1,12.85740302]
[1769900642451,0.01657584,2423.3,2422.3,1.03204449]
[1769900642753,0.01657584,2423.2,2422.3,1.03204817]
[1769900642956,0.01657584,2423.3,2422.3,1.03204817]
[1769900643351,1.03169362,2423.2,2422.3,13.88947997]
[1769900643526,1.03169362,2423.2,2422.3,1.03207695]
[1769900643956,1.03167949,2423.3,2422.3,13.88947997]
[1769900644250,1.50953584,2423.3,2422.3,14.94694014]
[1769900644634,1.50953584,2423.3,2422.5,0.0011]
[1769900649055,1.52611168,2423.3,2422.5,0.0011]
[1769900649258,12.92445798,2423.1,2422.3,0.0011]
[1769900649503,0.01657584,2422.4,2421.6,1.03236513]
[1769900649792,0.01657584,2422.4,2421.5,1.03239235]
[1769900649963,0.01657584,2422.4,2421.5,2.89129141]
[1769900650162,0.01657584,2422.4,2421.6,1.0323711]
[1769900650487,0.01657584,2422.2,2421.3,1.03357298]
[1769900650781,0.01657584,2422.4,2421.5,17.55541525]
[1769900650782,0.865,2422.4,2421.5,17.55541525]
[1769900650981,0.01657584,2422.6,2421.6,1.03234692]
[1769900651285,0.88157584,2422.5,2421.6,14.45810923]
[1769900651471,1.03203434,2422.4,2421.6,14.45810923]
[1769900651674,0.60416366,2422.3,2421.6,1.03234692]
[1769900651982,0.01657584,2421.9,2421.3,0.0011]
[1769900652886,0.01657584,2421.7,2420.7,1.03272743]
[1769900653185,0.01657584,2421.5,2420.7,1.03274879]
[1769900653369,0.01657584,2421.5,2420.7,1.85898192]
[1769900653567,0.01657584,2421.2,2420.4,0.0011]
[1769900653766,1.04907904,2421.3,2420.4,1.03395497]
[1769900653982,1.03249015,2421.4,2420.5,1.03281498]
[1769900654170,0.51788243,2421.3,2420.5,1.03281498]
[1769900654373,0.51788243,2421.3,2420.5,1.03284098]
[1769900654574,0.51788243,2421.3,2420.4,1.0339617]
[1769900654575,0.53445827,2421.3,2420.4,1.0339617]
[1769900655891,1.03254584,2421.2,2420.4,0.0011]
[1769900657269,1.03254584,2421.2,2420.7,0.0011]
[1769900658082,1.03216217,2422.1,2420.7,13.42686231]
[1769900658292,0.88157584,2422.0,2420.7,13.42686231]
[1769900658595,0.01657584,2421.9,2420.7,13.42686231]
[1769900659379,12.92445798,2421.9,2420.7,13.42686231]
[1769900659579,0.01657584,2421.8,2420.7,13.42686231]
[1769900659780,1.39883681,2421.8,2420.8,1.34268623]
[1769900660376,1.03233265,2421.7,2420.9,1.03267379]
[1769900660575,1.04890849,2421.7,2420.8,2.37537425]
[1769900662602,1.04890849,2421.7,2420.8,1.03270291]
[1769900663705,1.03216217,2422.1,2420.8,14.45846522]
[1769900664575,0.01657584,2421.7,2420.7,0.0011]
[1769900664891,0.01657584,2421.5,2420.7,0.0011]
[1769900665276,0.01657584,2421.5,2420.7,1.03385651]
[1769900665477,0.01657584,2421.5,2420.7,0.0011]
[1769900665793,0.01657584,2421.5,2420.7,1.03385207]
[1769900665993,0.01657584,2421.5,2420.7,2.89305342]
[1769900666804,1.03246056,2421.4,2420.7,2.89305342]
[1769900668312,1.03245185,2421.5,2420.7,2.89305342]
[1769900669408,4.1296071,2421.6,2420.7,2.89305342]
[1769900670282,4.1296071,2421.6,2420.9,0.0011]
[1769900670488,0.51885582,2421.5,2420.9,0.0011]
[1769900671514,1.03246056,2421.4,2420.9,0.0011]
[1769900672004,0.51885582,2421.5,2420.9,0.0011]
[1769900672213,0.001,2421.5,2420.9,13.42686231]
[1769900672707,1.03343421,2421.5,2420.9,13.42686231]
[1769900673289,1.03343421,2421.5,2420.9,0.0011]
[1769900673500,0.001,2421.5,2420.9,0.0011]
[1769900677791,0.001,2421.5,2421.0,14.25718711]
[1769900677986,0.001,2421.5,2421.0,16.09606828]
[1769900678191,0.001,2421.5,2421.0,15.06343714]
[1769900678507,0.001,2421.5,2421.0,13.22455597]
[1769900679286,0.001,2421.5,2420.9,1.0337687]
[1769900679933,0.001,2421.5,2420.9,0.0011]
[1769900680994,0.001,2421.5,2421.0,13.22455597]
[1769900682606,0.001,2421.5,2421.1,14.88515949]
[1769900682812,0.001,2421.5,2421.1,16.78682084]
[1769900683010,0.001,2421.3,2421.1,16.78682084]
[1769900685221,1.8981506,2422.2,2421.3,13.851471]
[1769900685421,2.14399419,2422.6,2421.3,13.851471]
[1769900685596,0.89150642,2422.5,2421.5,13.851471]
[1769900685797,3.20379635,2422.6,2421.5,13.851471]
[1769900685998,0.8914082,2422.5,2421.5,13.851471]
[1769900686194,3.20379635,2422.6,2421.5,13.851471]
[1769900686401,13.09798851,2422.1,2421.1,2.93534984]
[1769900686611,13.09798851,2422.0,2421.1,2.93534984]
[1769900687024,1.0322474,2421.9,2421.1,2.93534984]
[1769900687424,14.13022638,2422.0,2421.1,2.93534984]
[1769900687800,1.04881371,2422.0,2421.1,2.93534984]
[1769900688000,0.51941181,2421.9,2421.2,13.851471]
[1769900688823,1.03220181,2422.1,2421.2,13.851471]
[1769900689024,0.866,2422.2,2421.4,13.851471]
[1769900689208,0.866,2422.3,2421.4,13.851471]
[1769900689415,1.47027476,2422.3,2421.5,1.48839742]
[1769900690733,1.4868506,2422.3,2421.5,1.48839742]
[1769900690903,1.4868506,2422.3,2421.4,13.851471]
[1769900691431,1.4868506,2422.3,2421.2,4.1300128]
[1769900691432,1.03211956,2422.2,2421.2,4.1300128]
[1769900691638,1.03211956,2422.2,2421.2,17.9814838]
[1769900691838,4.14471322,2422.5,2421.2,17.9814838]
[1769900691839,1.03203434,2422.5,2421.3,13.851471]
[1769900692136,1.03203434,2422.5,2421.5,13.851471]
[1769900693312,1.89797663,2422.6,2421.5,13.851471]
[1769900693511,0.001,2423.1,2421.7,13.851471]
[1769900693711,0.001,2423.1,2421.9,13.851471]
[1769900693935,0.01657584,2423.0,2422.1,13.851471]
[1769900694238,0.001,2423.1,2422.1,13.851471]
[1769900694440,0.88257584,2423.4,2422.0,1.3851471]
[1769900694441,0.001,2423.6,2422.4,13.851471]
[1769900694646,0.001,2423.6,2422.8,13.851471]
[1769900695017,0.01657584,2424.0,2422.7,14.0850413]
[1769900695538,0.01657584,2424.0,2422.8,1.03186395]
[1769900695539,0.01657584,2423.6,2422.8,1.03186395]
[1769900695740,0.01657584,2423.6,2422.8,14.88333495]
[1769900696742,0.01657584,2423.7,2422.8,14.88333495]
[1769900696916,0.01657584,2423.7,2422.9,1.90107908]
[1769900697115,0.01657584,2424.6,2423.1,13.851471]
[1769900697338,0.01657584,2424.4,2423.1,13.851471]
[1769900697645,0.01657584,2424.3,2423.3,13.851471]
[1769900699563,1.04785284,2424.2,2423.4,1.03160848]
[1769900699850,0.01657584,2423.3,2422.6,1.03193808]
[1769900700154,0.01657584,2423.5,2422.6,1.03193808]
[1769900700521,0.01657584,2423.5,2422.6,14.88340908]
[1769900701625,1.04817122,2423.5,2422.6,14.88340908]
[1769900701852,0.01657584,2423.3,2422.5,1.03196675]
[1769900702157,0.01657584,2423.3,2422.4,1.03202064]
[1769900702158,0.01657584,2423.1,2422.4,1.03202064]
[1769900702363,0.01657584,2423.1,2422.3,1.03205002]
[1769900702562,0.01657584,2423.1,2422.0,13.851471]
[1769900702852,0.01657584,2422.8,2422.1,1.03213622]
[1769900703067,0.01657584,2422.8,2421.7,17.9807575]
[1769900703068,0.01657584,2422.6,2421.7,1.03230414]
[1769900703277,0.01657584,2422.6,2421.4,0.0011]
[1769900703278,0.01657584,2422.2,2421.4,0.0011]
[1769900703419,0.01657584,2422.0,2421.4,0.0011]
[1769900703625,1.0322474,2421.9,2421.4,0.0011]
[1769900704123,4.14488791,2422.3,2421.4,0.0011]
[1769900704124,1.91348239,2422.8,2421.4,13.852571]
[1769900704325,0.01657584,2422.5,2421.4,13.852571]
[1769900704627,0.01657584,2422.4,2421.4,13.852571]
[1769900704828,0.01657584,2422.6,2421.4,13.852571]
[1769900705049,1.44531347,2422.6,2421.6,13.851471]
[1769900705938,1.44531347,2422.6,2421.7,1.03233265]
[1769900705939,1.03203434,2422.4,2421.7,1.03233265]
[1769900706253,1.03203434,2422.4,2421.6,1.03236966]
[1769900706471,1.04861018,2422.4,2421.6,1.03236966]
[1769900706758,0.51931827,2422.3,2421.6,1.03236966]
[1769900707559,0.56473763,2422.6,2421.6,14.67619036]
[1769900707941,0.001,2422.6,2421.6,14.67619036]
[1769900709969,1.32455932,2423.3,2421.7,13.877391]
[1769900710207,1.32455932,2423.3,2421.9,13.877391]
[1769900710332,0.29290421,2423.3,2421.9,13.877391]
[1769900711033,1.32455866,2423.3,2421.9,13.877391]
[1769900711237,0.01657584,2422.9,2422.0,1.4909681]
[1769900711493,0.01657584,2422.9,2421.8,1.03229003]
[1769900712059,1.03194914,2422.6,2421.7,14.6761363]
[1769900712243,1.04848477,2422.7,2421.7,1.0323156]
[1769900712448,0.41442287,2422.6,2421.7,1.0323156]
[1769900713660,0.41442287,2422.6,2421.5,1.03239805]
[1769900713661,0.01657584,2422.3,2421.5,1.03239805]
[1769900713959,0.01657584,2422.2,2421.5,1.03241093]
[1769900714164,1.03216217,2422.1,2421.4,0.0011]
[1769900714655,0.51772727,2422.0,2421.4,0.0011]
[1769900715568,0.865,2422.4,2421.4,13.6449207]
[1769900716147,1.03207695,2422.3,2421.5,1.03241792]
[1769900718070,1.03207695,2422.3,2421.7,0.0011]
[1769900718368,4.12814295,2422.4,2421.7,0.0011]
[1769900718669,0.60417531,2422.3,2421.7,0.0011]
[1769900720374,1.0318434,2422.9,2421.7,13.6449207]
[1769900720668,1.03173238,2423.2,2421.7,13.6449207]
[1769900720967,1.03173238,2423.2,2421.9,13.6438207]
[1769900721572,0.29290421,2423.3,2422.0,0.2335703]
[1769900721747,0.29290421,2423.3,2422.1,13.6438207]
[1769900722977,0.29290421,2423.3,2422.3,13.6438207]
[1769900723669,1.32456375,2423.3,2422.3,13.6438207]
[1769900723873,1.32456375,2423.3,2422.4,1.46759403]
[1769900724980,0.29290421,2423.3,2422.5,1.03199174]
[1769900725471,0.29290421,2423.3,2422.5,14.67581244]
[1769900726389,0.29530204,2424.1,2422.6,13.877391]
[1769900727273,1.32664098,2424.1,2422.8,13.6438207]
[1769900727467,1.87347093,2424.1,2423.0,13.6438207]
[1769900727848,0.84213199,2424.1,2423.0,13.6438207]
[1769900728055,0.29530204,2424.1,2423.0,13.6438207]
[1769900728669,0.29530204,2424.1,2423.2,13.6438207]
[1769900729186,0.29530204,2424.1,2423.3,1.03165105]
[1769900729394,0.29530204,2424.1,2423.4,13.6438207]
[1769900729600,0.29530204,2424.1,2423.5,15.11136788]
[1769900731150,0.001,2423.9,2423.5,15.11136788]
[1769900731349,0.001,2423.9,2423.6,1.03152335]
[1769900731755,0.001,2423.9,2422.0,2.09296138]
[1769900731756,0.001,2423.9,2422.4,2.19605618]
[1769900731757,13.58965228,2423.8,2422.4,2.19605618]
[1769900731959,13.58965228,2423.8,2422.2,8.86286446]
[1769900731960,13.58965228,2423.1,2422.2,8.86286446]
[1769900732188,13.58965228,2423.1,2421.9,0.0011]
[1769900732189,13.60622812,2423.1,2421.9,0.0011]
[1769900732388,14.47488734,2423.0,2421.9,2.10795712]
[1769900732586,2.33272379,2422.9,2421.9,2.10795712]
[1769900732786,1.44748873,2422.9,2421.9,3.14019154]
[1769900732992,0.865,2423.1,2421.9,3.14019154]
[1769900733189,1.10291937,2423.3,2421.9,3.14019154]
[1769900733190,0.88525957,2423.0,2421.9,3.14019154]
[1769900733397,1.13409362,2423.2,2421.9,3.14019154]
[1769900733599,0.88523432,2423.1,2421.9,3.14019154]
[1769900733894,0.88523432,2423.0,2421.9,2.10795712]
[1769900734196,1.13409362,2423.2,2422.0,0.31402162]
[1769900734356,5.6258602,2423.5,2422.2,13.66039654]
[1769900734357,1.03156591,2423.5,2422.2,13.66039654]
[1769900734561,1.03155446,2423.6,2422.4,13.6438207]
[1769900735068,5.77854127,2423.7,2422.7,13.66039654]
[1769900735069,0.29344318,2423.7,2422.7,13.66039654]
[1769900735396,1.32495284,2423.7,2422.8,1.03186395]
[1769900735565,1.32495284,2423.7,2422.9,1.88032142]
[1769900735958,1.32495284,2423.7,2422.8,1.03186395]
[1769900736196,1.32495284,2423.7,2422.9,2.10685712]
[1769900736795,0.29344318,2423.7,2422.9,2.10685712]
[1769900737173,0.29344318,2423.7,2422.9,15.07040485]
[1769900737374,1.32492603,2423.7,2423.0,1.03177878]
[1769900737582,1.32492603,2423.7,2423.1,1.61021836]
[1769900737793,0.29344318,2423.7,2423.1,1.61021836]
[1769900739697,0.29344318,2423.7,2423.1,2.64194897]
[1769900740479,1.32493635,2423.7,2422.6,4.1276967]
[1769900740684,1.32493635,2423.7,2422.8,3.13871736]
[1769900740997,1.32493635,2423.7,2422.8,1.03186024]
[1769900741169,15.09277356,2423.7,2422.5,1.03196207]
[1769900741376,1.92186967,2423.6,2422.6,2.10685712]
[1769900741574,1.92186967,2423.6,2422.6,3.13876367]
[1769900741575,1.03156591,2423.5,2422.6,3.13876367]
[1769900741802,1.0315431,2423.6,2422.7,4.12761473]
[1769900741990,1.57664462,2423.6,2422.7,4.85425257]
[1769900742191,1.57664462,2423.6,2422.7,0.72663784]
[1769900742388,15.71244861,2423.6,2422.8,2.10685712]
[1769900742593,15.71244861,2423.6,2422.6,2.10685712]
[1769900742789,15.71244861,2423.6,2422.4,3.13889083]
[1769900742971,2.01319207,2423.5,2422.4,3.13889083]
[1769900743172,13.27080399,2423.3,2421.8,4.12912077]
[1769900743381,13.27080399,2423.3,2421.9,1.03332542]
[1769900743587,14.15601547,2423.2,2421.9,1.03334399]
[1769900743785,14.15601547,2423.2,2421.9,0.0011]
[1769900743786,1.0317362,2423.1,2421.9,0.0011]
[1769900744080,1.8429485,2423.0,2421.9,1.83748478]
[1769900746001,1.03182137,2422.9,2421.9,2.86969362]
[1769900748212,1.03182137,2422.9,2421.9,0.0011]
[1769900748213,14.30262536,2422.9,2421.9,0.0011]
[1769900748403,14.30262536,2422.9,2421.7,0.0011]
[1769900748404,13.27080399,2422.7,2421.7,0.0011]
[1769900748708,13.27080399,2422.5,2421.5,0.0011]
[1769900749407,13.27080399,2422.5,2421.6,1.03237072]
[1769900749581,1.4135804,2422.4,2421.6,1.03237072]
[1769900749783,1.4135804,2422.4,2421.7,13.20022168]
[1769900749983,0.865,2422.7,2421.9,1.03223337]
[1769900750289,1.89691098,2422.7,2421.9,1.03223337]
[1769900752284,1.89691098,2422.7,2421.6,1.03237528]
[1769900753189,1.89691098,2422.7,2421.6,14.23259696]
[1769900753389,2.49934772,2422.7,2421.7,1.83633594]
[1769900755109,2.49934772,2422.7,2421.8,1.03229003]
[1769900755795,0.001,2422.5,2421.8,1.03229003]
[1769900756710,0.001,2422.5,2421.8,14.23251171]
[1769900762096,0.865,2423.4,2421.8,15.09751171]
[1769900762410,0.865,2423.4,2422.0,13.20022168]
[1769900763008,0.865,2423.4,2422.0,13.21679752]
[1769900763208,0.001,2423.5,2422.4,13.20022168]
[1769900763522,0.001,2423.5,2422.6,13.20022168]
[1769900764194,0.001,2423.5,2422.8,13.20022168]
[1769900764802,0.29344318,2423.7,2422.9,13.20022168]
[1769900766329,0.21570239,2423.7,2423.1,13.20022168]
[1769900766504,0.21570239,2423.7,2423.2,14.62342173]
[1769900766711,0.21570239,2423.7,2423.2,13.20022168]
[1769900768420,0.21570239,2423.7,2423.3,1.03165105]
[1769900769529,0.21570239,2423.7,2423.3,14.03433288]
[1769900769729,14.39701649,2424.5,2423.3,14.03433288]
[1769900769921,15.21798924,2424.4,2423.2,1.03168136]
[1769900770241,13.36584258,2424.2,2423.2,1.03168136]
[1769900770528,13.36584258,2424.0,2422.8,1.03186395]
[1769900770700,13.36584258,2424.0,2422.4,0.865]
[1769900770701,14.24741842,2424.0,2422.4,0.865]
[1769900770905,14.24741842,2424.0,2422.1,17.13116661]
[1769900770906,13.36584258,2423.8,2422.7,1.03190112]
[1769900771128,13.36584258,2423.6,2422.7,1.03190112]
[1769900771737,13.36584258,2423.6,2422.6,1.03192155]
[1769900772035,13.36584258,2423.6,2422.7,1.03190147]
[1769900772222,13.36584258,2423.6,2422.5,4.12790457]
[1769900772425,13.36584258,2423.3,2421.9,0.865]
[1769900772601,13.36584258,2423.3,2422.0,1.03220478]
[1769900772602,14.39749363,2423.3,2422.0,1.03220478]
[1769900772936,13.36584258,2423.1,2422.0,1.03220478]
[1769900773921,2.5108564,2423.5,2422.0,14.03488661]
[1769900774239,0.26132564,2423.4,2422.2,13.00268183]
[1769900774441,1.03165105,2423.3,2422.3,1.03207695]
[1769900774938,4.38776029,2423.4,2422.3,1.03207695]
[1769900774939,1.47926863,2423.5,2422.3,14.03475878]
[1769900775137,17.49183473,2423.7,2422.3,14.03475878]
[1769900775138,1.03155151,2423.6,2422.3,14.03475878]
[1769900775310,1.03151158,2423.7,2422.5,13.00268183]
[1769900776808,1.03151158,2423.7,2422.6,1.03194914]
[1769900777408,1.89645066,2423.8,2422.6,14.03463097]
[1769900777637,1.89645066,2423.8,2422.7,1.81624276]
[1769900778343,1.89645066,2423.8,2422.7,14.81892459]
[1769900779047,1.89645066,2423.8,2422.8,1.03186395]
[1769900779441,0.865,2423.8,2422.8,1.03186395]
[1769900779646,1.89645593,2423.8,2422.8,14.03454578]
[1769900779941,1.89645593,2423.8,2422.9,1.81640566]
[1769900780133,1.42516656,2424.1,2422.9,14.81908749]
[1769900780339,1.03131292,2424.1,2422.9,14.81908749]
[1769900780717,1.03130067,2424.2,2422.9,14.81908749]
[1769900781049,1.03109791,2424.6,2423.1,13.00268183]
[1769900782230,1.03108667,2424.7,2423.1,13.00268183]
[1769900782542,1.03108667,2424.7,2423.3,13.00268183]
[1769900783045,4.12406908,2424.8,2423.5,13.00268183]
[1769900784112,13.36584258,2424.7,2423.4,1.03160848]
[1769900784343,13.38241842,2424.7,2423.4,1.03160848]
[1769900785125,1.03108162,2424.7,2423.4,13.00268183]
[1769900785326,2.98488682,2424.7,2423.6,13.00268183]
[1769900785528,0.29739837,2425.0,2423.6,13.00268183]
[1769900785729,0.29739837,2425.0,2424.0,13.00268183]
[1769900785932,1.0305304,2426.0,2424.3,13.00268183]
[1769900786129,1.10291937,2426.2,2424.5,13.00268183]
[1769900786130,0.51524144,2425.9,2424.5,13.00268183]
[1769900786335,0.865,2426.2,2424.5,13.00268183]
[1769900786336,1.03046771,2426.1,2424.5,13.00268183]
[1769900787131,1.03046771,2426.1,2424.7,13.00268183]
[1769900787325,0.60171416,2426.0,2424.9,13.00268183]
[1769900788330,13.96755674,2426.0,2424.8,1.40337797]
[1769900788650,13.36584258,2425.8,2424.8,1.40337797]
[1769900788858,0.1024,2425.9,2424.8,14.4060598]
[1769900789227,1.03057716,2425.9,2424.9,14.03365217]
[1769900789422,1.41560275,2426.6,2425.0,13.82840722]
[1769900789423,1.03029054,2426.5,2425.0,13.82840722]
[1769900789623,1.32638522,2426.6,2425.0,13.82840722]
[1769900789947,1.87109145,2426.6,2425.2,13.00268183]
[1769900790122,15.23693403,2426.6,2425.2,13.00268183]
[1769900791140,0.85740977,2426.6,2425.2,14.03352464]
[1769900791343,1.03032232,2426.5,2425.2,14.03352464]
[1769900791540,1.87110899,2426.6,2425.4,13.00268183]
[1769900791741,0.84083393,2426.6,2425.5,13.00268183]
[1769900791947,1.326389,2426.6,2425.5,13.00268183]
[1769900793331,1.326389,2426.6,2425.6,14.03335465]
[1769900793534,1.326389,2426.6,2425.6,14.04993049]
[1769900793535,0.29610754,2426.6,2425.6,14.04993049]
[1769900793734,1.02990854,2427.4,2425.7,13.00268183]
[1769900794081,1.02990854,2427.4,2425.7,14.4060598]
[1769900795340,0.98397584,2427.8,2426.1,13.00268183]
[1769900795341,1.02978127,2427.7,2426.1,13.00268183]
[1769900795533,1.02978127,2427.7,2426.3,13.00268183]
[1769900795534,2.89984071,2427.7,2426.3,13.00268183]
[1769900795772,2.89984071,2427.7,2426.2,0.82572539]
[1769900795773,13.36584258,2427.6,2426.2,0.82572539]
[1769900795977,2.31625913,2427.7,2426.5,13.00268183]
[1769900796274,0.28858828,2428.0,2426.9,13.00268183]
[1769900796440,1.31824247,2428.0,2426.9,13.00268183]
[1769900796765,0.28858828,2428.0,2426.9,13.00268183]
[1769900797264,0.28858828,2428.0,2426.4,14.16358206]
[1769900797265,0.01657584,2427.8,2426.4,14.16358206]
[1769900797432,0.01657584,2427.7,2426.4,14.16358206]
[1769900797630,0.864,2427.8,2426.4,14.16358206]
[1769900798869,3.09780011,2427.7,2426.4,14.16358206]
[1769900799162,3.09780011,2427.7,2426.4,15.99207347]
[1769900799163,0.39618001,2427.6,2426.4,15.99207347]
[1769900799468,1.02986611,2427.5,2426.4,15.99207347]
[1769900799666,0.01657584,2427.3,2426.1,13.13328063]
[1769900799831,1.04644195,2427.5,2426.4,1.03032219]
[1769900799832,1.02986611,2427.5,2426.4,1.03032219]
[1769900800167,1.42603214,2427.6,2426.4,14.16360282]
[1769900800368,1.02979265,2427.7,2426.6,13.13328063]
[1769900800573,1.86191038,2428.0,2426.6,13.13328063]
[1769900800875,1.86191038,2428.0,2426.8,13.13328063]
[1769900800876,0.28858828,2428.0,2426.8,13.13328063]
[1769900801073,1.31824609,2428.0,2426.7,1.49617741]
[1769900801273,1.31824609,2428.0,2426.5,13.13328063]
[1769900801594,1.31824609,2428.0,2426.6,14.16352871]
[1769900803666,0.001,2427.8,2426.6,14.16352871]
[1769900804043,0.001,2427.8,2426.8,13.72579287]
[1769900804262,0.001,2427.8,2427.0,13.72579287]
[1769900805984,0.001,2427.8,2427.1,14.75582871]
[1769900806550,0.001,2427.8,2426.9,15.12172919]
[1769900806853,0.001,2427.8,2426.9,1.03012011]
[1769900807185,0.001,2427.8,2426.8,1.03014392]
[1769900807475,12.6528055,2427.8,2426.6,1.03023037]
[1769900807848,1.02978127,2427.7,2426.3,14.75616833]
[1769900808052,1.78017119,2427.6,2426.4,1.97416885]
[1769900808254,1.78017119,2427.6,2426.4,15.69996172]
[1769900809985,1.02978127,2427.7,2426.4,15.69996172]
[1769900810767,0.001,2427.8,2426.5,14.75608341]
[1769900812479,0.001,2427.8,2426.7,13.72579287]
[1769900812874,0.001,2427.8,2426.8,1.03016317]
[1769900813074,0.54479711,2427.8,2426.9,1.88767644]
[1769900815259,0.54479711,2427.8,2426.9,2.91778942]
[1769900815260,1.02978127,2427.7,2426.9,2.91778942]
[1769900815473,0.001,2427.6,2426.9,1.88767644]
[1769900815672,0.001,2427.6,2426.4,1.97416885]
[1769900815860,0.01657584,2427.5,2426.4,3.00447546]